[Event "FIN-ch 2019"]
[Site "Helsinki"]
[Date "2019.06.14"]
[Round "5.7"]
[White "Ristoja, Samu"]
[Black "Lindholm, Jere"]
[Result "1-0"]
[ECO "D11"]
[WhiteElo "2197"]
[BlackElo "2145"]
[Annotator "ChessBase"]
[PlyCount "65"]
[EventDate "2019.06.10"]
[EventType "swiss"]
[EventCountry "FIN"]
[SourceTitle "playchess.com"]
[Source "ChessBase"]
[SourceQuality "1"]
[TimeControl "40/5400+30:1800+30"]

1. d4 {[%emt 0:00:00]} d5 {[%emt 0:00:02]} 2. Nf3 {[%emt 0:00:00]} Nf6 {[%emt 0:00:21]} 3. g3 {[%emt 0:00:09]} c6 {[%emt 0:05:35]} 4. Bg2 {[%emt 0:00:10]} Bf5 {[%emt 0:00:47]} 5. O-O {[%emt 0:00:16]} e6 {[%emt 0:00:58]} 6. c4 {[%emt 0:02:35]} Nbd7 {[%emt 0:05:25]} 7. b3 {[%emt 0:02:47]} Be7 {[%emt 0:02:11]} 8. Bb2 {[%emt 0:01:40]} h6 {[%emt 0:03:52]} 9. Nc3 {[%emt 0:06:17]} Ne4 {[%emt 0:06:17]} 10. Nd2 {[%emt 0:02:42]} Nxd2 {[%emt 0:03:42]} 11. Qxd2 {[%emt 0:00:11]} dxc4 {[%emt 0:00:45]} 12. bxc4 {[%emt 0:15:39]} Nb6 {[%emt 0:00:39]} 13. e4 {[%emt 0:00:48]} Bg4 {[%emt 0:05:31]} 14. Qd3 {[%emt 0:09:01]} Bf6 {[%emt 0:05:54]} 15. d5 {[%emt 0:17:55]} Qe7 {[%emt 0:03:33]} 16. d6 {[%emt 0:03:10]} Qd8 {[%emt 0:03:43]} 17. f4 {[%emt 0:06:48]} e5 {[%emt 0:28:40]} 18. f5 {[%emt 0:02:25]} Nd7 {[%emt 0:01:03]} 19. Bc1 {[%emt 0:14:05]} Nc5 {[%emt 0:02:31]} 20. Qe3 {[%emt 0:05:01]} Qxd6 {[%emt 0:00:08]} 21. Ba3 {[%emt 0:00:14]} b6 {[%emt 0:00:32]} 22. Rfe1 {[%emt 0:06:08]} Bg5 {[%emt 0:01:18]} 23. Qf2 {[%emt 0:00:04]} Qd2 {[%emt 0:06:16]} 24. Bxc5 {[%emt 0:00:11]} bxc5 {[%emt 0:00:07]} 25. Nb1 {[%emt 0:00:57]} Qxf2+ {[%emt 0:06:26]} 26. Kxf2 {[%emt 0:00:02]} Rb8 {[%emt 0:00:09]} 27. h3 {[%emt 0:00:28]} Rb2+ {[%emt 0:00:04]} 28. Kf1 {[%emt 0:00:24]} Bh5 {[%emt 0:00:05]} 29. g4 {[%emt 0:00:17]} Ke7 {[%emt 0:07:08]} 30. Re2 {[%emt 0:00:05]} Bc1 {[%emt 0:00:35]} 31. Nc3 {[%emt 0:00:13]} Bd2 {[%emt 0:00:36]} 32. Na4 {[%emt 0:01:13]} Rc2 {[%emt 0:00:14]} 33. Nxc5 {[%emt 0:01:31]} 1-0

[Event "FIN-ch 2019"]
[Site "Helsinki"]
[Date "2019.06.15"]
[Round "6.1"]
[White "Ronka, Erik"]
[Black "Keinanen, Toivo"]
[Result "1/2-1/2"]
[ECO "D58"]
[WhiteElo "2270"]
[BlackElo "2370"]
[Annotator "NA"]
[PlyCount "40"]
[EventDate "2019.06.10"]
[EventType "swiss"]
[EventCountry "FIN"]
[SourceTitle "playchess.com"]
[Source "ChessBase"]
[SourceQuality "1"]
[TimeControl "40/5400+30:1800+30"]

1. d4 {[%emt 0:00:00]} d5 {[%emt 0:00:00]} 2. c4 {[%emt 0:00:00]} e6 {[%emt 0:00:00]} 3. Nc3 {[%emt 0:00:00]} Be7 {[%emt 0:00:00]} 4. Nf3 {[%emt 0:00:00]} Nf6 {[%emt 0:00:18]} 5. Bg5 {[%emt 0:00:00]} h6 {[%emt 0:01:49]} 6. Bh4 {[%emt 0:00:00]} O-O {[%emt 0:00:10]} 7. e3 {[%emt 0:00:01]} b6 {[%emt 0:00:22]} 8. Be2 {[%emt 0:00:02]} Bb7 {[%emt 0:02:37]} 9. Bxf6 {[%emt 0:00:03]} Bxf6 {[%emt 0:00:04]} 10. cxd5 {[%emt 0:00:07]} exd5 {[%emt 0:00:51]} 11. O-O {[%emt 0:00:02]} Qd6 {[%emt 0:09:51]} 12. Rc1 {[%emt 0:04:24]} c6 {[%emt 0:02:26]} 13. a3 {[%emt 0:02:48]} Nd7 {[%emt 0:02:08]} 14. Re1 {[%emt 0:09:51]} Rfe8 {[%emt 0:03:47]} 15. Bf1 {[%emt 0:00:33]} c5 {[%emt 0:07:45]} 16. dxc5 {[%emt 0:00:32]} bxc5 {[%emt 0:00:37]} 17. Nb5 {[%emt 0:08:18]} Qb6 {[%emt 0:08:28]} 18. b4 {[%emt 0:00:04]} c4 {[%emt 0:06:44]} 19. Nc3 {[%emt 0:11:23]} Bxc3 {[%emt 0:07:48]} 20. Rxc3 {[%emt 0:00:02]} a5 {[%emt 0:00:03]} 1/2-1/2

[Event "FIN-ch 2019"]
[Site "Helsinki"]
[Date "2019.06.15"]
[Round "6.2"]
[White "Koykka, Pekka"]
[Black "Sipila, Vilka"]
[Result "1-0"]
[ECO "B30"]
[WhiteElo "2399"]
[BlackElo "2410"]
[Annotator "NA"]
[PlyCount "99"]
[EventDate "2019.06.10"]
[EventType "swiss"]
[EventCountry "FIN"]
[SourceTitle "playchess.com"]
[Source "ChessBase"]
[SourceQuality "1"]
[TimeControl "40/5400+30:1800+30"]

1. e4 {[%emt 0:00:00]} c5 {[%emt 0:00:14]} 2. Nf3 {[%emt 0:00:00]} Nc6 {[%emt 0:00:10]} 3. Nc3 {[%emt 0:00:03]} e5 {[%emt 0:02:03]} 4. Bc4 {[%emt 0:00:10]} d6 {[%emt 0:00:50]} 5. d3 {[%emt 0:00:08]} Be7 {[%emt 0:01:09]} 6. Nd2 {[%emt 0:00:19]} Nf6 {[%emt 0:03:25]} 7. Nf1 {[%emt 0:00:09]} Na5 {[%emt 0:00:40]} 8. Ne3 {[%emt 0:00:21]} O-O {[%emt 0:02:10]} 9. O-O {[%emt 0:00:41]} Kh8 {[%emt 0:02:01]} 10. a3 {[%emt 0:08:13]} Nxc4 {[%emt 0:00:48]} 11. dxc4 {[%emt 0:00:07]} Bd7 {[%emt 0:06:51]} 12. a4 {[%emt 0:12:08]} Ne8 {[%emt 0:05:24]} 13. Ncd5 {[%emt 0:08:07]} Bg5 {[%emt 0:00:56]} 14. Qd3 {[%emt 0:05:23]} Rc8 {[%emt 0:09:05]} 15. b3 {[%emt 0:01:11]} Nf6 {[%emt 0:06:35]} 16. Nc3 {[%emt 0:03:44]} Ne8 {[%emt 0:24:42]} 17. Ncd5 {[%emt 0:00:10]} Be6 {[%emt 0:04:04]} 18. Bb2 {[%emt 0:03:33]} Nc7 {[%emt 0:02:08]} 19. Rad1 {[%emt 0:14:01]} Nxd5 {[%emt 0:01:24]} 20. Nxd5 {[%emt 0:02:31]} a6 {[%emt 0:04:51]} 21. Qc3 {[%emt 0:12:59]} Bh6 {[%emt 0:04:51]} 22. f4 {[%emt 0:04:56]} Bg4 {[%emt 0:03:09]} 23. Rde1 {[%emt 0:00:57]} exf4 {[%emt 0:00:14]} 24. Rxf4 {[%emt 0:03:41]} Bh5 {[%emt 0:01:21]} 25. Ref1 {[%emt 0:03:21]} Kg8 {[%emt 0:03:17]} 26. Qg3 {[%emt 0:00:53]} Bg6 {[%emt 0:03:31]} 27. Rf6 {[%emt 0:00:44]} gxf6 {[%emt 0:02:55]} 28. Bxf6 {[%emt 0:00:32]} Qxf6 {[%emt 0:04:37]} 29. Nxf6+ {[%emt 0:03:23]} Kh8 {[%emt 0:00:01]} 30. h4 {[%emt 0:04:16]} Bg7 {[%emt 0:00:33]} 31. h5 {[%emt 0:04:25]} Bxf6 {[%emt 0:00:08]} 32. Rxf6 {[%emt 0:00:11]} Bxh5 {[%emt 0:00:03]} 33. Rxd6 {[%emt 0:00:19]} Bg6 {[%emt 0:00:40]} 34. Qe5+ {[%emt 0:00:48]} Kg8 {[%emt 0:00:03]} 35. Rd7 {[%emt 0:00:31]} b6 {[%emt 0:01:50]} 36. Re7 {[%emt 0:03:55]} Rc6 {[%emt 0:00:45]} 37. Qd5 {[%emt 0:00:40]} Rf6 {[%emt 0:00:31]} 38. a5 {[%emt 0:00:37]} bxa5 {[%emt 0:00:29]} 39. Qxc5 {[%emt 0:00:31]} Rd8 {[%emt 0:00:06]} 40. Kh2 {[%emt 0:00:44]} Rfd6 {[%emt 0:00:53]} 41. Qxa5 {[%emt 0:01:28]} Rd2 {[%emt 0:00:45]} 42. c5 {[%emt 0:13:06]} Kf8 {[%emt 0:00:14]} 43. Re5 {[%emt 0:00:28]} R8d4 {[%emt 0:01:00]} 44. Qc3 {[%emt 0:07:25]} Rd8 {[%emt 0:00:50]} 45. c6 {[%emt 0:00:22]} Rd1 {[%emt 0:00:47]} 46. c7 {[%emt 0:00:28]} Rc8 {[%emt 0:00:03]} 47. Qb4+ {[%emt 0:01:54]} Kg7 {[%emt 0:00:08]} 48. Qb7 {[%emt 0:00:36]} Rf8 {[%emt 0:00:19]} 49. c8=Q {[%emt 0:00:19]} Kh6 {[%emt 0:00:04]} 50. Qxf8# {[%emt 0:00:16]} 1-0

[Event "FIN-ch 2019"]
[Site "Helsinki"]
[Date "2019.06.15"]
[Round "6.3"]
[White "Agopov, Mikael"]
[Black "Nyysti, Sampsa"]
[Result "1/2-1/2"]
[ECO "C84"]
[WhiteElo "2432"]
[BlackElo "2320"]
[Annotator "NA"]
[PlyCount "110"]
[EventDate "2019.06.10"]
[EventType "swiss"]
[EventCountry "FIN"]
[SourceTitle "playchess.com"]
[Source "ChessBase"]
[SourceQuality "1"]
[TimeControl "40/5400+30:1800+30"]

1. e4 {[%emt 0:00:00]} e5 {[%emt 0:00:00]} 2. Nf3 {[%emt 0:00:00]} Nc6 {[%emt 0:00:00]} 3. Bb5 {[%emt 0:00:00]} a6 {[%emt 0:00:01]} 4. Ba4 {[%emt 0:00:00]} Nf6 {[%emt 0:00:21]} 5. O-O {[%emt 0:00:00]} Be7 {[%emt 0:00:08]} 6. d3 {[%emt 0:00:26]} b5 {[%emt 0:00:18]} 7. Bb3 {[%emt 0:00:03]} d6 {[%emt 0:00:14]} 8. a3 {[%emt 0:00:31]} O-O {[%emt 0:00:17]} 9. Nc3 {[%emt 0:00:03]} Bg4 {[%emt 0:01:18]} 10. Be3 {[%emt 0:00:52]} Nd4 {[%emt 0:00:34]} 11. Bxd4 {[%emt 0:00:07]} exd4 {[%emt 0:00:03]} 12. Nd5 {[%emt 0:00:08]} c5 {[%emt 0:03:23]} 13. h3 {[%emt 0:01:02]} Bd7 {[%emt 0:02:30]} 14. Qb1 {[%emt 0:19:03]} Re8 {[%emt 0:18:55]} 15. Nf4 {[%emt 0:12:52]} Bf8 {[%emt 0:03:46]} 16. Qa2 {[%emt 0:02:37]} Re7 {[%emt 0:00:25]} 17. Rae1 {[%emt 0:14:12]} Qe8 {[%emt 0:03:53]} 18. g4 {[%emt 0:02:34]} Qc8 {[%emt 0:21:11]} 19. e5 {[%emt 0:08:45]} dxe5 {[%emt 0:04:20]} 20. Nd5 {[%emt 0:21:58]} Bxg4 {[%emt 0:06:18]} 21. Nxe7+ {[%emt 0:02:22]} Bxe7 {[%emt 0:00:03]} 22. Bxf7+ {[%emt 0:01:08]} Kh8 {[%emt 0:00:08]} 23. Nxe5 {[%emt 0:00:19]} Bxh3 {[%emt 0:00:29]} 24. f3 {[%emt 0:03:57]} Bd6 {[%emt 0:12:20]} 25. Rf2 {[%emt 0:03:06]} c4 {[%emt 0:04:13]} 26. Bxc4 {[%emt 0:01:36]} Bxe5 {[%emt 0:00:13]} 27. Rxe5 {[%emt 0:00:02]} bxc4 {[%emt 0:00:30]} 28. Qxc4 {[%emt 0:00:13]} Qd7 {[%emt 0:03:13]} 29. Rfe2 {[%emt 0:00:48]} Qb7 {[%emt 0:03:41]} 30. Kf2 {[%emt 0:03:06]} Rf8 {[%emt 0:00:10]} 31. Qc5 {[%emt 0:00:52]} Qb8 {[%emt 0:03:51]} 32. Rg5 {[%emt 0:01:57]} Ng4+ {[%emt 0:02:32]} 33. Ke1 {[%emt 0:00:10]} Qg3+ {[%emt 0:00:34]} 34. Kd1 {[%emt 0:00:18]} Qxf3 {[%emt 0:01:45]} 35. Qxd4 {[%emt 0:00:19]} Nf6 {[%emt 0:00:56]} 36. Kd2 {[%emt 0:01:23]} Bg4 {[%emt 0:00:39]} 37. Re1 {[%emt 0:00:19]} h5 {[%emt 0:02:00]} 38. Kc1 {[%emt 0:00:37]} Rc8 {[%emt 0:00:45]} 39. Kb1 {[%emt 0:00:39]} Qc6 {[%emt 0:01:35]} 40. c4 {[%emt 0:00:51]} Qc7 {[%emt 0:01:08]} 41. Rge5 {[%emt 0:03:36]} Rd8 {[%emt 0:01:19]} 42. Qf4 {[%emt 0:00:34]} Qd6 {[%emt 0:01:11]} 43. R1e3 {[%emt 0:00:30]} Kg8 {[%emt 0:01:32]} 44. Qg5 {[%emt 0:06:38]} Nh7 {[%emt 0:12:54]} 45. Qh4 {[%emt 0:00:30]} Rb8 {[%emt 0:02:27]} 46. Ka2 {[%emt 0:07:37]} Nf6 {[%emt 0:00:25]} 47. Re7 {[%emt 0:00:53]} Qd4 {[%emt 0:02:09]} 48. Qf2 {[%emt 0:01:15]} Rd8 {[%emt 0:00:51]} 49. Qh4 {[%emt 0:03:19]} Rb8 {[%emt 0:00:51]} 50. Qf2 {[%emt 0:00:15]} Rd8 {[%emt 0:00:12]} 51. Qh4 {[%emt 0:00:03]} Qf4 {[%emt 0:00:41]} 52. R7e4 {[%emt 0:00:06]} Qf5 {[%emt 0:01:21]} 53. Re5 {[%emt 0:00:15]} Qf4 {[%emt 0:00:30]} 54. R5e4 {[%emt 0:00:14]} Qf5 {[%emt 0:00:25]} 55. Re5 {[%emt 0:00:08]} Qf4 {[%emt 0:00:24]} 1/2-1/2

[Event "FIN-ch 2019"]
[Site "Helsinki"]
[Date "2019.06.15"]
[Round "6.4"]
[White "Lahdelma, Henri"]
[Black "Hokkanen, Petri"]
[Result "1-0"]
[ECO "D37"]
[WhiteElo "2188"]
[BlackElo "2199"]
[Annotator "NA"]
[PlyCount "111"]
[EventDate "2019.06.10"]
[EventType "swiss"]
[EventCountry "FIN"]
[SourceTitle "playchess.com"]
[Source "ChessBase"]
[SourceQuality "1"]
[TimeControl "40/5400+30:1800+30"]

1. d4 d5 2. c4 e6 3. Nf3 Nf6 4. Nc3 Be7 5. Bf4 O-O 6. e3 b6 7. cxd5 Nxd5 8. Nxd5 Qxd5 9. Bxc7 Na6 {[%emt 1:34:30]} 10. Bg3 {[%emt 1:35:00]} Bb7 {[%emt 0:00:30]} 11. a3 {[%emt 0:00:30]} Qa5+ {[%emt 0:00:30]} 12. Nd2 {[%emt 0:00:30]} h5 {[%emt 0:00:30]} 13. h4 {[%emt 0:00:30]} Rac8 {[%emt 0:00:30]} 14. Bd3 {[%emt 0:00:30]} g6 {[%emt 0:00:30]} 15. O-O {[%emt 0:00:30]} Rfd8 {[%emt 0:00:30]} 16. b4 {[%emt 0:00:30]} Qd5 {[%emt 0:00:30]} 17. Be4 {[%emt 0:00:30]} Qd7 {[%emt 0:00:30]} 18. Bxb7 {[%emt 0:00:30]} Qxb7 {[%emt 0:00:30]} 19. Qb3 {[%emt 0:00:30]} Nc7 {[%emt 0:00:30]} 20. Rac1 {[%emt 0:00:30]} Nd5 {[%emt 0:00:30]} 21. Nc4 {[%emt 0:00:30]} Nf6 {[%emt 0:00:30]} 22. f3 {[%emt 0:00:30]} Qd5 {[%emt 0:00:30]} 23. Bf2 {[%emt 0:00:30]} Qb5 {[%emt 0:00:30]} 24. Ne5 {[%emt 0:00:30]} Nd5 {[%emt 0:00:30]} 25. Nd3 {[%emt 0:00:30]} a5 {[%emt 0:00:30]} 26. a4 {[%emt 0:00:30]} Qe8 {[%emt 0:00:30]} 27. b5 {[%emt 0:00:30]} Rxc1 {[%emt 0:00:30]} 28. Rxc1 {[%emt 0:00:30]} Rc8 {[%emt 0:00:30]} 29. Rc4 {[%emt 0:00:30]} Nb4 {[%emt 0:00:30]} 30. Nxb4 {[%emt 0:00:30]} Bxb4 {[%emt 0:00:30]} 31. e4 {[%emt 0:00:30]} Rd8 {[%emt 0:00:30]} 32. Qc2 {[%emt 0:00:30]} Qe7 {[%emt 0:00:30]} 33. Rc6 {[%emt 0:00:30]} Qf6 {[%emt 0:00:30]} 34. Qc4 {[%emt 0:00:30]} Qf4 {[%emt 0:00:30]} 35. Rxb6 {[%emt 0:00:30]} Bd6 {[%emt 0:00:30]} 36. Rc6 {[%emt 0:00:30]} Qh2+ {[%emt 0:00:30]} 37. Kf1 {[%emt 0:00:30]} Qh1+ {[%emt 0:00:30]} 38. Ke2 {[%emt 0:00:30]} Qxg2 {[%emt 0:00:30]} 39. e5 {[%emt 0:00:30]} Be7 {[%emt 0:00:30]} 40. Ke3 {[%emt 0:00:30]} g5 {[%emt 0:00:30]} 41. Rc8 {[%emt 0:30:30]} g4 {[%emt 0:30:30]} 42. Rxd8+ {[%emt 0:00:30]} Bxd8 {[%emt 0:00:30]} 43. fxg4 {[%emt 0:00:30]} hxg4 {[%emt 0:00:30]} 44. Qc6 {[%emt 0:00:30]} Qh3+ {[%emt 0:00:30]} 45. Ke2 {[%emt 0:00:30]} Kg7 {[%emt 0:00:30]} 46. Qa8 {[%emt 0:00:30]} Bxh4 {[%emt 0:00:30]} 47. Bxh4 {[%emt 0:00:30]} Qxh4 {[%emt 0:00:30]} 48. Qg2 {[%emt 0:00:30]} g3 {[%emt 0:00:30]} 49. Ke3 {[%emt 0:00:30]} f5 {[%emt 0:00:30]} 50. exf6+ {[%emt 0:00:30]} Kxf6 {[%emt 0:00:30]} 51. b6 {[%emt 0:00:30]} Qg5+ {[%emt 0:00:30]} 52. Ke2 {[%emt 0:00:30]} Ke7 {[%emt 0:00:30]} 53. b7 {[%emt 0:00:30]} Qg8 {[%emt 0:00:30]} 54. Qc6 {[%emt 0:00:30]} g2 {[%emt 0:00:30]} 55. Qc7+ {[%emt 0:00:30]} Kf6 {[%emt 0:00:30]} 56. b8=Q {[%emt 0:00:30]} 1-0

[Event "FIN-ch 2019"]
[Site "Helsinki"]
[Date "2019.06.15"]
[Round "6.5"]
[White "Ristoja, Samu"]
[Black "Luukkonen, Tommi"]
[Result "1/2-1/2"]
[ECO "B51"]
[WhiteElo "2197"]
[BlackElo "2330"]
[Annotator "NA"]
[PlyCount "103"]
[EventDate "2019.06.10"]
[EventType "swiss"]
[EventCountry "FIN"]
[SourceTitle "playchess.com"]
[Source "ChessBase"]
[SourceQuality "1"]
[TimeControl "40/5400+30:1800+30"]

1. e4 {[%emt 0:00:00]} c5 {[%emt 0:00:00]} 2. Nf3 {[%emt 0:00:00]} d6 {[%emt 0:00:05]} 3. Bb5+ {[%emt 0:00:00]} Nd7 {[%emt 0:00:07]} 4. O-O {[%emt 0:00:06]} Ngf6 {[%emt 0:00:05]} 5. Re1 {[%emt 0:00:09]} a6 {[%emt 0:00:06]} 6. Bf1 {[%emt 0:00:30]} b6 {[%emt 0:00:08]} 7. d4 {[%emt 0:00:31]} cxd4 {[%emt 0:00:09]} 8. Nxd4 {[%emt 0:00:06]} Bb7 {[%emt 0:00:05]} 9. f3 {[%emt 0:00:15]} e6 {[%emt 0:00:32]} 10. c4 {[%emt 0:00:44]} Be7 {[%emt 0:00:07]} 11. Nc3 {[%emt 0:00:35]} O-O {[%emt 0:00:05]} 12. Be3 {[%emt 0:03:54]} Rc8 {[%emt 0:00:35]} 13. Qd2 {[%emt 0:02:30]} Ne5 {[%emt 0:00:58]} 14. b3 {[%emt 0:06:35]} Qc7 {[%emt 0:00:46]} 15. Na4 {[%emt 0:03:08]} Nfd7 {[%emt 0:01:24]} 16. Qf2 {[%emt 0:03:40]} Nc5 {[%emt 0:01:05]} 17. Nb2 {[%emt 0:01:22]} Kh8 {[%emt 0:05:49]} 18. Rac1 {[%emt 0:04:40]} g5 {[%emt 0:00:43]} 19. h3 {[%emt 0:08:34]} Rg8 {[%emt 0:02:01]} 20. b4 {[%emt 0:10:52]} Ncd7 {[%emt 0:00:14]} 21. Ne2 {[%emt 0:08:11]} Rg6 {[%emt 0:06:42]} 22. Bd4 {[%emt 0:15:11]} Kg8 {[%emt 0:01:44]} 23. f4 {[%emt 0:06:23]} gxf4 {[%emt 0:00:23]} 24. Kh1 {[%emt 0:02:13]} Nf6 {[%emt 0:01:49]} 25. Nxf4 {[%emt 0:01:02]} Nxe4 {[%emt 0:00:15]} 26. Rxe4 {[%emt 0:01:11]} Bxe4 {[%emt 0:00:08]} 27. Nxg6 {[%emt 0:01:49]} fxg6 {[%emt 0:05:43]} 28. Bxb6 {[%emt 0:06:02]} Qb7 {[%emt 0:00:12]} 29. c5 {[%emt 0:04:32]} dxc5 {[%emt 0:03:53]} 30. Bxc5 {[%emt 0:01:01]} Nd7 {[%emt 0:06:24]} 31. Nd3 {[%emt 0:03:24]} Rf8 {[%emt 0:11:13]} 32. Qe2 {[%emt 0:01:34]} Nf6 {[%emt 0:05:21]} 33. Bxe7 {[%emt 0:00:19]} Qxe7 {[%emt 0:00:08]} 34. Nc5 {[%emt 0:00:12]} Bd5 {[%emt 0:00:11]} 35. Qe5 {[%emt 0:00:51]} a5 {[%emt 0:05:06]} 36. a3 {[%emt 0:01:10]} axb4 {[%emt 0:03:19]} 37. axb4 {[%emt 0:00:01]} Ne8 {[%emt 0:01:01]} 38. Bc4 {[%emt 0:02:29]} Rf5 {[%emt 0:03:02]} 39. Qe2 {[%emt 0:01:58]} Qg5 {[%emt 0:00:19]} 40. Nd3 {[%emt 0:01:32]} Re5 {[%emt 0:09:49]} 41. Nxe5 {[%emt 0:06:56]} Qxc1+ {[%emt 0:00:08]} 42. Qf1 {[%emt 0:03:13]} Qxf1+ {[%emt 0:00:14]} 43. Bxf1 {[%emt 0:00:01]} Nd6 {[%emt 0:02:03]} 44. Kg1 {[%emt 0:02:05]} Kg7 {[%emt 0:02:09]} 45. Bd3 {[%emt 0:01:11]} Kf6 {[%emt 0:00:24]} 46. Nd7+ {[%emt 0:00:22]} Ke7 {[%emt 0:01:14]} 47. Ne5 {[%emt 0:00:19]} Nf5 {[%emt 0:00:49]} 48. g4 {[%emt 0:01:50]} Nd4 {[%emt 0:02:55]} 49. Kf2 {[%emt 0:04:05]} Kd6 {[%emt 0:03:59]} 50. Nf7+ {[%emt 0:00:13]} Ke7 {[%emt 0:00:08]} 51. Ng5 {[%emt 0:15:59]} h6 52. Ne4 1/2-1/2

[Event "FIN-ch 2019"]
[Site "Helsinki"]
[Date "2019.06.15"]
[Round "6.6"]
[White "Norri, Joose"]
[Black "Tiitta, Sauli"]
[Result "1-0"]
[ECO "A10"]
[WhiteElo "2271"]
[BlackElo "2214"]
[Annotator "NA"]
[PlyCount "97"]
[EventDate "2019.06.10"]
[EventType "swiss"]
[EventCountry "FIN"]
[SourceTitle "playchess.com"]
[Source "ChessBase"]
[SourceQuality "1"]
[TimeControl "40/5400+30:1800+30"]

1. c4 a6 2. g3 e6 3. Bg2 d5 4. Na3 {[%emt 1:32:00]} Nf6 {[%emt 1:32:00]} 5. b3 {[%emt 0:00:30]} c5 {[%emt 0:00:30]} 6. Nf3 {[%emt 0:00:30]} Nc6 {[%emt 0:00:30]} 7. O-O {[%emt 0:00:30]} Bd6 {[%emt 0:00:30]} 8. Bb2 {[%emt 0:00:30]} O-O {[%emt 0:00:30]} 9. Nc2 {[%emt 0:00:30]} d4 {[%emt 0:00:30]} 10. d3 {[%emt 0:00:30]} e5 {[%emt 0:00:30]} 11. a3 {[%emt 0:00:30]} Re8 {[%emt 0:00:30]} 12. e3 {[%emt 0:00:30]} dxe3 {[%emt 0:00:30]} 13. fxe3 {[%emt 0:00:30]} Bg4 {[%emt 0:00:30]} 14. e4 {[%emt 0:00:30]} Nd4 {[%emt 0:00:30]} 15. Ne3 {[%emt 0:00:30]} Bh5 {[%emt 0:00:30]} 16. h3 {[%emt 0:00:30]} Bxf3 {[%emt 0:00:30]} 17. Bxf3 {[%emt 0:00:30]} Qb6 {[%emt 0:00:30]} 18. Rb1 {[%emt 0:00:30]} Qxb3 {[%emt 0:00:30]} 19. Qxb3 {[%emt 0:00:30]} Nxb3 {[%emt 0:00:30]} 20. Nf5 {[%emt 0:00:30]} Bb8 {[%emt 0:00:30]} 21. Bc3 {[%emt 0:00:30]} Nd4 {[%emt 0:00:30]} 22. Bxd4 {[%emt 0:00:30]} exd4 {[%emt 0:00:30]} 23. Rxb7 {[%emt 0:00:30]} Kf8 {[%emt 0:00:30]} 24. g4 {[%emt 0:00:30]} Ra7 {[%emt 0:00:30]} 25. Rxa7 {[%emt 0:00:30]} Bxa7 {[%emt 0:00:30]} 26. Nd6 {[%emt 0:00:30]} Re6 {[%emt 0:00:30]} 27. g5 {[%emt 0:00:30]} Nd7 {[%emt 0:00:30]} 28. Nc8 {[%emt 0:00:30]} Rc6 {[%emt 0:00:30]} 29. Nxa7 {[%emt 0:00:30]} Rc7 {[%emt 0:00:30]} 30. Nb5 {[%emt 0:00:30]} axb5 {[%emt 0:00:30]} 31. cxb5 Ne5 {[%emt 0:00:30]} 32. Be2 {[%emt 0:01:00]} c4 {[%emt 0:00:30]} 33. dxc4 {[%emt 0:00:30]} d3 {[%emt 0:00:30]} 34. Bd1 {[%emt 0:00:30]} Rxc4 {[%emt 0:00:30]} 35. b6 {[%emt 0:00:30]} Rxe4 {[%emt 0:00:30]} 36. Bb3 {[%emt 0:00:30]} d2 {[%emt 0:00:30]} 37. b7 {[%emt 0:00:30]} Nc6 {[%emt 0:00:30]} 38. Rxf7+ {[%emt 0:00:30]} Ke8 {[%emt 0:00:30]} 39. Rc7 {[%emt 0:00:30]} Re7 {[%emt 0:00:30]} 40. Rxc6 {[%emt 0:00:30]} Rxb7 {[%emt 0:00:30]} 41. Ba4 {[%emt 0:30:30]} Ke7 {[%emt 0:30:30]} 42. Kf2 {[%emt 0:00:30]} Ra7 {[%emt 0:00:30]} 43. Bd1 {[%emt 0:00:30]} Rxa3 {[%emt 0:00:30]} 44. h4 {[%emt 0:00:30]} Ra1 {[%emt 0:00:30]} 45. Ke2 {[%emt 0:00:30]} Rc1 {[%emt 0:00:30]} 46. Rc2 {[%emt 0:00:30]} Rxc2 {[%emt 0:00:30]} 47. Bxc2 Kf7 {[%emt 0:00:30]} 48. Bxh7 {[%emt 0:01:00]} g6 {[%emt 0:00:30]} 49. Bxg6+ {[%emt 0:00:30]} 1-0

[Event "FIN-ch 2019"]
[Site "Helsinki"]
[Date "2019.06.15"]
[Round "6.7"]
[White "Lindholm, Jere"]
[Black "Jarvenpaa, Jari"]
[Result "1-0"]
[ECO "B32"]
[WhiteElo "2145"]
[BlackElo "2204"]
[Annotator "NA"]
[PlyCount "107"]
[EventDate "2019.06.10"]
[EventType "swiss"]
[EventCountry "FIN"]
[SourceTitle "playchess.com"]
[Source "ChessBase"]
[SourceQuality "1"]
[TimeControl "40/5400+30:1800+30"]

1. e4 {[%emt 0:00:00]} c5 {[%emt 0:00:14]} 2. Nf3 {[%emt 0:00:00]} Nc6 {[%emt 0:00:13]} 3. d4 {[%emt 0:00:00]} cxd4 {[%emt 0:00:10]} 4. Nxd4 {[%emt 0:00:00]} e5 {[%emt 0:00:11]} 5. Nb5 {[%emt 0:00:00]} d6 {[%emt 0:00:05]} 6. N1c3 {[%emt 0:00:00]} a6 {[%emt 0:00:10]} 7. Na3 {[%emt 0:00:04]} Be6 {[%emt 0:00:07]} 8. Nc4 {[%emt 0:00:04]} b5 {[%emt 0:00:26]} 9. Ne3 {[%emt 0:00:04]} Nf6 {[%emt 0:00:12]} 10. g3 {[%emt 0:00:27]} h5 {[%emt 0:00:23]} 11. h4 {[%emt 0:03:17]} g6 {[%emt 0:00:31]} 12. Bg2 {[%emt 0:00:04]} Bh6 {[%emt 0:01:06]} 13. Ncd5 {[%emt 0:01:35]} Nd4 {[%emt 0:14:33]} 14. Nxf6+ {[%emt 0:09:21]} Qxf6 {[%emt 0:00:02]} 15. O-O {[%emt 0:00:11]} Qd8 {[%emt 0:03:42]} 16. c3 {[%emt 0:07:42]} Nc6 {[%emt 0:01:44]} 17. a4 {[%emt 0:00:05]} b4 {[%emt 0:06:48]} 18. Nd5 {[%emt 0:01:43]} Bxc1 {[%emt 0:01:42]} 19. Rxc1 {[%emt 0:00:11]} bxc3 {[%emt 0:02:19]} 20. Rxc3 {[%emt 0:00:29]} Bxd5 {[%emt 0:00:47]} 21. Qxd5 {[%emt 0:01:53]} Nd4 {[%emt 0:00:42]} 22. Rc4 {[%emt 0:05:27]} O-O {[%emt 0:02:21]} 23. f4 {[%emt 0:15:20]} Qb6 {[%emt 0:12:04]} 24. Kh2 {[%emt 0:01:09]} Qxb2 {[%emt 0:17:22]} 25. fxe5 {[%emt 0:00:27]} dxe5 {[%emt 0:02:16]} 26. Rc7 {[%emt 0:00:41]} Qb3 {[%emt 0:12:39]} 27. Qxe5 {[%emt 0:15:06]} Rad8 {[%emt 0:03:33]} 28. Qf6 {[%emt 0:01:48]} Qe6 {[%emt 0:04:51]} 29. Qg5 {[%emt 0:09:21]} Qd6 {[%emt 0:03:31]} 30. Rb7 {[%emt 0:00:44]} Rde8 {[%emt 0:03:09]} 31. Qd5 {[%emt 0:16:00]} Qxd5 {[%emt 0:02:23]} 32. exd5 {[%emt 0:00:02]} Nf5 {[%emt 0:01:06]} 33. Rf2 {[%emt 0:04:48]} Ne3 {[%emt 0:01:46]} 34. Rd2 {[%emt 0:01:37]} Rd8 {[%emt 0:01:54]} 35. d6 {[%emt 0:05:21]} Nc4 {[%emt 0:00:17]} 36. Rd4 {[%emt 0:00:57]} Nxd6 {[%emt 0:00:27]} 37. Ra7 {[%emt 0:00:12]} Nf5 {[%emt 0:00:18]} 38. Rxd8 {[%emt 0:00:38]} Rxd8 {[%emt 0:00:01]} 39. Rxa6 {[%emt 0:00:10]} Ne3 {[%emt 0:01:49]} 40. Ra8 {[%emt 0:00:49]} Rxa8 {[%emt 0:00:25]} 41. Bxa8 {[%emt 0:30:05]} Nc4 {[%emt 0:30:38]} 42. Bd5 {[%emt 0:00:07]} Nb6 {[%emt 0:00:00]} 43. Bb3 {[%emt 0:00:00]} Kf8 {[%emt 0:00:00]} 44. a5 {[%emt 0:00:00]} Nc8 {[%emt 0:00:00]} 45. Kg2 {[%emt 0:00:00]} Ke7 {[%emt 0:00:00]} 46. Kf3 {[%emt 0:00:00]} f6 {[%emt 0:00:00]} 47. Kf4 {[%emt 0:00:00]} Kd6 {[%emt 0:00:00]} 48. Bf7 {[%emt 0:00:00]} Ne7 {[%emt 0:00:00]} 49. Bxg6 {[%emt 0:00:00]} Nxg6+ {[%emt 0:00:00]} 50. Kf5 {[%emt 0:00:00]} Nf8 {[%emt 0:00:00]} 51. Kxf6 {[%emt 0:00:00]} Kc6 {[%emt 0:00:00]} 52. Kg5 {[%emt 0:00:00]} Kb5 {[%emt 0:00:00]} 53. Kxh5 {[%emt 0:00:00]} Kxa5 {[%emt 0:00:00]} 54. g4 {[%emt 0:00:00]} 1-0